lending/lending_fUSD_20240124
["ID","MTS","AMOUNT","RATE_DAILY","PERIOD"]
[312642024,1706122368606,-500.0,0.00051506,10]
[312642025,1706122368615,-610.32,0.00051506,31]
[312642026,1706122368625,-636.71,0.00051506,31]
[312642027,1706122368634,-516.63,0.00051506,31]
[312642028,1706122368644,-588.07,0.00051506,31]
[312642029,1706122368653,-565.0,0.00051506,31]
[312642030,1706122368663,-661.88,0.00051506,31]
[312642031,1706122368672,-500.0,0.00051506,31]
[312642032,1706122368682,-670.77,0.00051506,31]
[312642033,1706122368691,-500.0,0.00051506,31]
[312642034,1706122368701,-607.49055899,0.00051506,31]
[312642035,1706122368710,-500.0,0.00051506,31]
[312642036,1706122368720,-500.0,0.00051506,31]
[312642037,1706122368729,-167.25272988,0.00051506,31]
[312642038,1706122368738,-500.0,0.00051506,31]
[312642039,1706122368749,-500.0,0.00051506,31]
[312642040,1706122368758,-500.0,0.00051506,31]
[312642041,1706122368767,-500.0,0.00051506,31]
[312642042,1706122368777,-588.69,0.00051506,31]
[312642043,1706122368787,-500.0,0.00051506,31]
[312642044,1706122368797,-500.0,0.00051506,31]
[312642045,1706122368806,-500.0,0.00051506,31]
[312642046,1706122368816,-500.0,0.00051506,31]
[312642047,1706122368825,-500.0,0.00051506,31]
[312642048,1706122368835,-500.0,0.00051506,31]
[312642049,1706122368844,-505.02,0.00051506,31]
[312642050,1706122368854,-500.0,0.00051506,31]
[312642051,1706122368863,-152.53948736,0.00051506,31]
[312642052,1706122368874,-500.0,0.00051506,31]
[312642053,1706122368883,-500.0,0.00051506,31]
[312642054,1706122368893,-500.0,0.00051506,31]
[312642055,1706122368902,-598.88,0.00051506,31]
[312642056,1706122368911,-610.34,0.00051506,31]
[312642057,1706122368921,-500.0,0.00051506,31]
[312642058,1706122368931,-500.0,0.00051506,31]
[312642059,1706122368940,-500.0,0.00051506,31]
[312642060,1706122368950,-500.0,0.00051506,31]
[312642061,1706122368959,-500.0,0.00051506,31]
[312642062,1706122368969,-500.0,0.00051506,31]
[312642063,1706122368978,-500.0,0.00051506,31]
[312642064,1706122368987,-577.61847184,0.00051506,31]
[312642065,1706122368997,-840.37,0.00051506,31]
[312642066,1706122369006,-500.0,0.00051506,31]
[312642067,1706122369015,-507.59386825,0.00051506,31]
[312642068,1706122369026,-576.14,0.00051506,31]
[312642069,1706122369036,-500.0,0.00051506,31]
[312642070,1706122369045,-614.84,0.00051506,31]
[312642071,1706122369055,-500.0,0.00051506,31]
[312642072,1706122369064,-500.0,0.00051506,31]
[312642073,1706122369073,-544.30531922,0.00051506,31]
[312642074,1706122369083,-500.0,0.00051506,31]
[312642075,1706122369093,-699.16,0.00051506,31]
[312642076,1706122369102,-500.0,0.00051506,31]
[312642077,1706122369111,-602.98,0.00051506,31]
[312642078,1706122369121,-500.0,0.00051506,31]
[312642079,1706122369130,-1209.78,0.00051506,31]
[312642080,1706122369140,-500.0,0.00051506,31]
[312642081,1706122369150,-500.0,0.00051506,31]
[312642082,1706122369159,-500.0,0.00051506,31]
[312642083,1706122369169,-526.93,0.00051506,31]
[312642084,1706122369178,-669.92,0.00051506,31]
[312642085,1706122369188,-551.91216133,0.00051506,31]
[312642086,1706122369197,-681.96,0.00051506,31]
[312642087,1706122369207,-500.0,0.00051506,31]
[312642088,1706122369217,-1093.09,0.00051506,31]
[312642089,1706122369227,-505.89,0.00051506,31]
[312642090,1706122369237,-504.26,0.00051506,31]
[312642091,1706122369246,-576.3,0.00051506,31]
[312642092,1706122369255,-683.41,0.00051506,31]
[312642093,1706122369265,-500.0,0.00051506,31]
[312642094,1706122369275,-861.51,0.00051506,31]
[312642095,1706122369285,-531.92,0.00051506,31]
[312642096,1706122369295,-500.0,0.00051506,31]
[312642097,1706122369306,-1129.85,0.00051506,2]
[312642098,1706122369315,-500.0,0.00051506,31]
[312642099,1706122369325,-500.0,0.00051506,31]
[312642100,1706122369335,-523.21,0.00051506,31]
[312642101,1706122369345,-554.22,0.00051506,31]
[312642102,1706122369354,-500.0,0.00051506,31]
[312642103,1706122369363,-501.22,0.00051506,31]
[312642104,1706122369374,-538.61,0.00051506,31]
[312642105,1706122369385,-748.72,0.00051506,31]
[312642106,1706122369395,-598.83,0.00051506,31]
[312642107,1706122369405,-909.89,0.00051506,14]
[312642108,1706122369415,-500.0,0.00051506,31]
[312642109,1706122369424,-960.56,0.00051506,31]
[312642110,1706122369434,-830.24,0.00051506,31]
[312642111,1706122369443,-895.7,0.00051506,31]
[312642112,1706122369453,-500.0,0.00051506,31]
[312642113,1706122369462,-545.66,0.00051506,31]
[312642114,1706122369471,-1002.31,0.00051506,31]
[312642115,1706122369481,-500.0,0.00051506,31]
[312642116,1706122369490,-1055.98,0.00051506,31]
[312642117,1706122369499,-500.0,0.00051506,31]
[312642118,1706122369508,-675.47,0.00051506,31]
[312642119,1706122369518,-1008.99,0.00051506,31]
[312642120,1706122369528,-500.0,0.00051506,31]
[312642121,1706122369537,-500.0,0.00051506,31]
[312642122,1706122369546,-697.41,0.00051506,31]
[312642123,1706122369555,-737.45,0.00051506,31]
[312642124,1706122369565,-733.37,0.00051506,31]
[312642125,1706122369574,-518.00165648,0.00051506,31]
[312642126,1706122369583,-909.31,0.00051506,31]
[312642127,1706122369593,-506.83,0.00051506,31]
[312642128,1706122369602,-367.85185121,0.00051506,31]
[312642129,1706122369611,-874.13,0.00051506,31]
[312642130,1706122369621,-703.21,0.00051506,31]
[312642131,1706122369630,-500.0,0.00051506,31]
[312642132,1706122369639,-500.0,0.00051506,31]
[312642133,1706122369649,-968.85,0.00051506,31]
[312642134,1706122369658,-500.0,0.00051506,31]
[312642135,1706122369668,-1263.86,0.00051506,31]
[312642136,1706122369677,-500.0,0.00051506,31]
[312642137,1706122369688,-733.08,0.00051506,31]
[312642138,1706122369697,-570.38,0.00051506,31]
[312642139,1706122369707,-500.0,0.00051506,31]
[312642140,1706122369716,-506.74,0.00051506,31]
[312642141,1706122369726,-873.0,0.00051506,31]
[312642142,1706122369736,-500.0,0.00051506,31]
[312642143,1706122369745,-500.0,0.00051506,31]
[312642144,1706122369754,-500.0,0.00051506,31]
[312642145,1706122369764,-500.0,0.00051506,10]
[312642146,1706122369774,-1425.52,0.00051506,31]
[312642147,1706122369783,-500.0,0.00051506,31]
[312642148,1706122369792,-530.21661232,0.00051506,7]
[312642149,1706122369802,-831.23,0.00051506,31]
[312642150,1706122369811,-642.97,0.00051506,31]
[312642151,1706122369820,-2093.79,0.00051506,31]
[312642152,1706122369829,-500.0,0.00051506,31]
[312642153,1706122369839,-500.0,0.00051506,31]
[312642154,1706122369848,-811.0,0.00051506,31]
[312642155,1706122369858,-500.0,0.00051506,31]
[312642156,1706122369867,-500.0,0.00051506,7]
[312642157,1706122369876,-545.73,0.00051506,31]
[312642158,1706122369886,-612.69,0.00051506,31]
[312642159,1706122369895,-574.43,0.00051506,31]
[312642160,1706122369905,-500.0,0.00051506,31]
[312642161,1706122369914,-514.67,0.00051506,31]
[312642162,1706122369924,-712.58,0.00051506,31]
[312642163,1706122369934,-622.52,0.00051506,31]
[312642164,1706122369943,-955.43,0.00051506,31]
[312642165,1706122369952,-500.0,0.00051506,31]
[312642166,1706122369963,-500.0,0.00051506,31]
[312642167,1706122369973,-745.16,0.00051506,31]
[312642168,1706122369982,-726.38,0.00051506,31]
[312642169,1706122369992,-798.08,0.00051506,31]
[312642170,1706122370001,-500.0,0.00051506,31]
[312642171,1706122370010,-626.62,0.00051506,31]
[312642172,1706122370020,-865.11,0.00051506,31]
[312642173,1706122370030,-500.0,0.00051506,31]
[312642174,1706122370039,-500.0,0.00051506,31]
[312642175,1706122370049,-705.93,0.00051506,31]
[312642176,1706122370058,-1862.33,0.00051506,31]
[312642177,1706122370068,-500.0,0.00051506,31]
[312642178,1706122370077,-500.0,0.00051506,31]
[312642179,1706122370086,-510.67,0.00051506,31]
[312642180,1706122370096,-668.54,0.00051506,31]
[312642181,1706122370105,-500.0,0.00051506,31]
[312642182,1706122370113,-856.57,0.00051506,31]
[312642183,1706122370123,-500.0,0.00051506,31]
[312642184,1706122370133,-500.0,0.00051506,31]
[312642185,1706122370142,-662.93,0.00051506,31]
[312642186,1706122370152,-500.0,0.00051506,31]
[312642187,1706122370161,-500.0,0.00051506,31]
[312642188,1706122370171,-664.98,0.00051506,31]
[312642189,1706122370180,-500.0,0.00051506,31]
[312642190,1706122370190,-553.0,0.00051506,31]
[312642191,1706122370200,-601.77,0.00051506,31]
[312642192,1706122370209,-500.0,0.00051506,31]
[312642193,1706122370220,-526.72,0.00051506,31]
[312642194,1706122370229,-614.5,0.00051506,31]
[312642195,1706122370239,-500.0,0.00051506,31]
[312642196,1706122370248,-633.22003642,0.00051506,31]
[312642197,1706122370258,-620.25,0.00051506,31]
[312642198,1706122370267,-500.0,0.00051506,31]
[312642199,1706122370276,-812.44,0.00051506,31]
[312642200,1706122370286,-500.0,0.00051506,31]
[312642201,1706122370295,-500.0,0.00051506,31]
[312642202,1706122370308,-794.73,0.00051506,31]
[312642203,1706122370318,-500.0,0.00051506,31]
[312642204,1706122370327,-645.52,0.00051506,31]
[312642205,1706122370337,-500.0,0.00051506,31]
[312642206,1706122370348,-666.76,0.00051506,31]
[312642207,1706122370358,-705.9,0.00051506,31]
[312642208,1706122370368,-500.0,0.00051506,31]
[312642209,1706122370379,-1412.9,0.00051506,31]
[312642210,1706122370389,-764.01,0.00051506,31]
[312642211,1706122370398,-650.22,0.00051506,31]
[312642212,1706122370408,-189.68405515,0.00051506,31]
[312642213,1706122370417,-500.0,0.00051506,31]
[312642214,1706122370427,-743.33,0.00051506,31]
[312642215,1706122370437,-632.51,0.00051506,31]
[312642216,1706122370446,-1250.48,0.00051506,31]
[312642217,1706122370456,-500.0,0.00051506,31]
[312642218,1706122370465,-500.0,0.00051506,31]
[312642219,1706122370475,-650.49,0.00051506,31]
[312642220,1706122370484,-733.9,0.00051506,31]
[312642221,1706122370494,-669.48,0.00051506,31]
[312642222,1706122370503,-500.0,0.00051506,31]
[312642223,1706122370513,-1269.11,0.00051506,2]
[312642224,1706122370522,-744.02,0.00051506,31]
[312642225,1706122370531,-533.98,0.00051506,31]
[312642226,1706122370540,-500.0,0.00051506,31]
[312642227,1706122370550,-664.9,0.00051506,31]
[312642228,1706122370560,-807.92,0.00051506,31]
[312642229,1706122370664,-500.0,0.00051506,31]
[312642230,1706122370674,-500.0,0.00051506,31]
[312642231,1706122370683,-553.89,0.00051506,31]
[312642232,1706122370693,-500.0,0.00051506,31]
[312642233,1706122370703,-678.22,0.00051506,31]
[312642234,1706122370712,-868.79,0.00051506,31]
[312642235,1706122370722,-500.0,0.00051506,31]
[312642236,1706122370731,-980.31,0.00051506,31]
[312642237,1706122370741,-540.29,0.00051506,31]
[312642238,1706122370750,-606.53,0.00051506,31]
[312642239,1706122370759,-500.0,0.00051506,31]
[312642240,1706122370769,-500.0,0.00051506,31]
[312642241,1706122370779,-590.42,0.00051506,31]
[312642242,1706122370788,-500.0,0.00051506,31]
[312642243,1706122370797,-1598.07,0.00051506,31]
[312642244,1706122370807,-526.85,0.00051506,31]
[312642245,1706122370817,-500.0,0.00051506,31]
[312642246,1706122370827,-1012.55,0.00051506,31]
[312642247,1706122370836,-822.56,0.00051506,31]
[312642248,1706122370846,-317.63566383,0.00051506,31]
[312642249,1706122370856,-2206.82,0.00051506,7]
[312642250,1706122370865,-500.0,0.00051506,31]
[312642251,1706122370875,-650.91,0.00051506,31]
[312642252,1706122370885,-1000.0,0.00051506,7]
[312642253,1706122370894,-500.0,0.00051506,31]
[312642254,1706122370903,-731.16,0.00051506,31]
[312642255,1706122370914,-500.0,0.00051506,31]
[312642256,1706122370923,-500.0,0.00051506,31]
[312642257,1706122370933,-500.0,0.00051506,31]
[312642258,1706122370943,-552.33,0.00051506,31]
[312642259,1706122370952,-508.81,0.00051506,31]
[312642260,1706122370962,-813.7,0.00051506,31]
[312642261,1706122370972,-733.58,0.00051506,31]
[312642262,1706122370981,-500.0,0.00051506,31]
[312642263,1706122370992,-509.4,0.00051506,31]
[312642264,1706122371001,-500.0,0.00051506,31]
[312642265,1706122371011,-500.0,0.00051506,31]
[312642266,1706122371020,-656.53,0.00051506,31]
[312642267,1706122371029,-748.28,0.00051506,31]
[312642268,1706122371038,-500.0,0.00051506,31]
[312642269,1706122371047,-500.0,0.00051506,31]
[312642270,1706122371056,-737.23,0.00051506,31]
[312642271,1706122371067,-500.0,0.00051506,31]
[312642272,1706122371076,-500.0,0.00051506,31]
[312642273,1706122371087,-651.3,0.00051506,31]
[312642274,1706122371097,-500.0,0.00051506,31]
[312642275,1706122371107,-1130.82,0.00051506,7]
[312642276,1706122371117,-743.9,0.00051506,31]
[312642277,1706122371128,-695.86,0.00051506,31]
[312642278,1706122371137,-500.0,0.00051506,31]
[312642279,1706122371147,-524.48,0.00051506,31]
[312642280,1706122371156,-500.0,0.00051506,31]
[312642281,1706122371166,-577.96,0.00051506,31]
[312642282,1706122371176,-500.0,0.00051506,31]
[312642283,1706122371185,-500.0,0.00051506,31]
[312642284,1706122371195,-500.0,0.00051506,31]
[312642285,1706122371205,-822.67,0.00051506,31]
[312642286,1706122371215,-500.0,0.00051506,31]
[312642287,1706122371225,-500.0,0.00051506,31]
[312642288,1706122371234,-500.0,0.00051506,31]
[312642289,1706122371243,-539.38,0.00051506,31]
[312642290,1706122371252,-754.54,0.00051506,31]
[312642291,1706122371262,-748.39,0.00051506,31]
[312642292,1706122371272,-759.37,0.00051506,31]
[312642293,1706122371281,-596.17,0.00051506,31]
[312642294,1706122371290,-590.14,0.00051506,31]
[312642295,1706122371300,-571.53667176,0.00051506,31]
[312642296,1706122371313,-500.0,0.00051506,31]
[312642297,1706122371323,-574.37,0.00051506,31]
[312642298,1706122371332,-836.66,0.00051506,31]
[312642299,1706122371342,-834.27,0.00051506,31]
[312642300,1706122371352,-1000.0,0.00051506,30]
[312642301,1706122371361,-500.0,0.00051506,31]
[312642302,1706122371371,-500.0,0.00051506,31]
[312642303,1706122371381,-500.0,0.00051506,31]
[312642304,1706122371390,-561.15,0.00051506,31]
[312642305,1706122371399,-571.13,0.00051506,31]
[312642306,1706122371409,-500.0,0.00051506,31]
[312642307,1706122371418,-722.96,0.00051506,31]
[312642308,1706122371427,-2163.99,0.00051506,31]
[312642309,1706122371437,-574.84,0.00051506,31]
[312642310,1706122371447,-500.0,0.00051506,31]
[312642311,1706122371456,-500.0,0.00051506,31]
[312642312,1706122371465,-583.44189136,0.00051506,31]
[312642313,1706122371475,-500.0,0.00051506,31]
[312642314,1706122371484,-624.88,0.00051506,31]
[312642315,1706122371494,-500.0,0.00051506,31]
[312642316,1706122371503,-1020.09,0.00051506,31]
[312642317,1706122371513,-500.0,0.00051506,31]
[312642318,1706122371523,-1074.38,0.00051506,31]
[312642319,1706122371533,-683.14,0.00051506,31]
[312642320,1706122371542,-500.0,0.00051506,31]
[312642321,1706122371552,-500.0,0.00051506,31]
[312642322,1706122371561,-500.0,0.00051506,31]
[312642323,1706122371571,-774.89,0.00051506,31]
[312642324,1706122371581,-500.0,0.00051506,31]
[312642325,1706122371591,-598.13,0.00051506,31]
[312642326,1706122371600,-822.96,0.00051506,31]
[312642327,1706122371610,-590.69,0.00051506,31]
[312642328,1706122371620,-1001.25,0.00051506,31]
[312642329,1706122371629,-500.0,0.00051506,31]
[312642330,1706122371639,-557.33,0.00051506,31]
[312642331,1706122371649,-580.61118455,0.00051506,31]
[312642332,1706122371659,-500.0,0.00051506,31]
[312642333,1706122371669,-739.58,0.00051506,31]
[312642334,1706122371679,-1123.3,0.00051506,31]
[312642335,1706122371692,-559.97,0.00051506,31]
[312642336,1706122371702,-500.0,0.00051506,31]
[312642337,1706122371712,-545.51,0.00051506,31]
[312642338,1706122371722,-703.65,0.00051506,31]
[312642339,1706122371732,-500.0,0.00051506,31]
[312642340,1706122371742,-535.27,0.00051506,31]
[312642341,1706122371752,-500.0,0.00051506,31]
[312642342,1706122371761,-507.77,0.00051506,31]
[312642343,1706122371771,-500.0,0.00051506,31]
[312642344,1706122371781,-500.0,0.00051506,31]
[312642345,1706122371791,-500.0,0.00051506,31]
[312642346,1706122371800,-464.24254396,0.00051506,31]
[312642347,1706122371809,-540.51,0.00051506,31]
[312642348,1706122371819,-744.37,0.00051506,31]
[312642349,1706122371829,-500.0,0.00051506,31]
[312642350,1706122371839,-638.61,0.00051506,31]
[312642351,1706122371849,-500.0,0.00051506,31]
[312642352,1706122371859,-664.27,0.00051506,31]
[312642353,1706122371868,-623.83,0.00051506,31]
[312642354,1706122371878,-500.0,0.00051506,31]
[312642355,1706122371888,-1168.99,0.00051506,31]
[312642356,1706122371898,-1288.27,0.00051506,31]
[312642357,1706122371908,-500.0,0.00051506,31]
[312642358,1706122371917,-500.0,0.00051506,31]
[312642359,1706122371927,-500.0,0.00051506,31]
[312642360,1706122371936,-1216.74,0.00051506,31]
[312642361,1706122371946,-789.81,0.00051506,31]
[312642362,1706122371956,-1358.17,0.00051506,31]
[312642363,1706122371966,-500.0,0.00051506,31]
[312642364,1706122371975,-500.0,0.00051506,31]
[312642365,1706122371985,-500.0,0.00051506,31]
[312642366,1706122371995,-500.0,0.00051506,31]
[312642367,1706122372005,-500.0,0.00051506,31]
[312642368,1706122372015,-835.3,0.00051506,31]
[312642369,1706122372024,-500.0,0.00051506,31]
[312642370,1706122372034,-5442.29,0.00051506,31]
[312642371,1706122372043,-500.0,0.00051506,31]
[312642372,1706122372053,-609.87,0.00051506,31]
[312642373,1706122372062,-500.0,0.00051506,31]
[312642374,1706122372072,-500.0,0.00051506,31]
[312642375,1706122372081,-500.0,0.00051506,31]
[312642376,1706122372091,-500.0,0.00051506,31]
[312642377,1706122372101,-500.0,0.00051506,31]
[312642378,1706122372110,-500.0,0.00051506,31]
[312642379,1706122372119,-766.55,0.00051506,31]
[312642380,1706122372129,-1213.12,0.00051506,31]
[312642381,1706122372138,-950.1,0.00051506,31]
[312642382,1706122372148,-891.54,0.00051506,31]
[312642383,1706122372157,-789.01,0.00051506,31]
[312642384,1706122372166,-571.48,0.00051506,31]
[312642385,1706122372177,-674.93,0.00051506,31]
[312642386,1706122372186,-500.0,0.00051506,31]
[312642387,1706122372195,-754.8,0.00051506,31]
[312642388,1706122372204,-500.0,0.00051506,31]
[312642389,1706122372214,-994.52,0.00051506,31]
[312642390,1706122372223,-619.7,0.00051506,31]
[312642391,1706122372232,-1265.56,0.00051506,31]
[312642392,1706122372242,-500.0,0.00051506,31]
[312642393,1706122372251,-553.3,0.00051506,31]
[312642394,1706122372260,-1070.96,0.00051506,31]
[312642395,1706122372270,-697.79,0.00051506,31]
[312642396,1706122372279,-1012.33,0.00051506,31]
[312642397,1706122372289,-500.0,0.00051506,31]
[312642398,1706122372300,-1137.93,0.00051506,31]
[312642399,1706122372312,-876.45,0.00051506,31]
[312642400,1706122372321,-715.02,0.00051506,31]
[312642401,1706122372330,-500.0,0.00051506,31]
[312642402,1706122372340,-500.0,0.00051506,7]
[312642403,1706122372349,-500.0,0.00051506,31]
[312642404,1706122372358,-833.81,0.00051506,31]
[312642405,1706122372367,-500.0,0.00051506,31]
[312642406,1706122372378,-1061.9,0.00051506,31]
[312642407,1706122372389,-1257.58,0.00051506,31]
[312642408,1706122372398,-500.0,0.00051506,31]
[312642409,1706122372408,-500.0,0.00051506,31]
[312642410,1706122372417,-980.87,0.00051506,31]
[312642411,1706122372426,-642.76,0.00051506,31]
[312642412,1706122372436,-500.0,0.00051506,31]
[312642413,1706122372445,-2365.7,0.00051506,31]
[312642414,1706122372455,-550.34,0.00051506,31]
[312642415,1706122372464,-9651.62,0.00051506,5]
[312642416,1706122372474,-516.0,0.00051506,31]
[312642417,1706122372483,-1273.8,0.00051506,31]
[312642418,1706122372493,-259.15,0.00051506,31]
[312642419,1706122372502,-500.0,0.00051506,31]
[312642420,1706122372511,-848.97,0.00051506,31]
[312642421,1706122372521,-826.53,0.00051506,31]
[312642422,1706122372531,-500.0,0.00051506,31]
[312642423,1706122372541,-500.0,0.00051506,31]
[312642424,1706122372550,-500.0,0.00051506,31]
[312642425,1706122372559,-570.78,0.00051506,31]
[312642426,1706122372568,-750.28,0.00051506,31]
[312642427,1706122372578,-1277.6,0.00051506,31]
[312642428,1706122372587,-744.61,0.00051506,31]
[312642429,1706122372597,-886.52,0.00051506,31]
[312642430,1706122372606,-500.0,0.00051506,31]
[312642431,1706122372615,-6353.27,0.00051506,5]
[312642432,1706122372625,-688.18,0.00051506,31]
[312642433,1706122372634,-535.34129456,0.00051506,31]
[312642434,1706122372644,-500.0,0.00051506,31]
[312642435,1706122372653,-647.3,0.00051506,31]
[312642436,1706122372663,-585.99,0.00051506,31]
[312642437,1706122372673,-500.0,0.00051506,31]
[312642438,1706122372683,-500.0,0.00051506,31]
[312642439,1706122372692,-1311.12,0.00051506,31]
[312642440,1706122372701,-500.0,0.00051506,31]
[312642441,1706122372711,-500.0,0.00051506,31]
[312642442,1706122372720,-635.69,0.00051506,31]
[312642443,1706122372729,-2747.11,0.00051506,31]
[312642444,1706122372739,-500.0,0.00051506,31]
[312642445,1706122372748,-1064.36,0.00051506,31]
[312642446,1706122372758,-988.82,0.00051506,31]
[312642447,1706122372767,-500.0,0.00051506,31]
[312642448,1706122372777,-336.97,0.00051506,31]
[312642449,1706122372786,-534.2218761,0.00051506,31]
[312642450,1706122372796,-500.0,0.00051506,31]
[312642451,1706122372805,-500.0,0.00051506,31]
[312642452,1706122372815,-506.02,0.00051506,31]
[312642453,1706122372824,-330.40460234,0.00051506,31]
[312642454,1706122372834,-500.0,0.00051506,31]
[312642455,1706122372844,-4014.55,0.00051506,31]
[312642456,1706122372854,-996.79,0.00051506,31]
[312642457,1706122372863,-879.67,0.00051506,31]
[312642458,1706122372873,-500.0,0.00051506,31]
[312642459,1706122372883,-556.81,0.00051506,31]
[312642460,1706122372893,-500.0,0.00051506,31]
[312642461,1706122372903,-1740.65,0.00051506,31]
[312642462,1706122372912,-1603.09,0.00051506,31]
[312642463,1706122372922,-722.88,0.00051506,31]
[312642464,1706122372931,-500.0,0.00051506,31]
[312642465,1706122372941,-891.73,0.00051506,31]
[312642466,1706122372951,-703.85,0.00051506,31]
[312642467,1706122372961,-1257.39,0.00051506,31]
[312642468,1706122372970,-500.0,0.00051506,31]
[312642469,1706122372980,-500.0,0.00051506,31]
[312642470,1706122372990,-534.53,0.00051506,31]
[312642471,1706122372999,-4733.77,0.00051506,31]
[312642472,1706122373008,-3077.84,0.00051506,31]
[312642473,1706122373019,-2216.62,0.00051506,31]
[312642474,1706122373028,-500.0,0.00051506,31]
[312642475,1706122373038,-1335.18,0.00051506,31]
[312642476,1706122373047,-654.54,0.00051506,31]
[312642477,1706122373057,-500.0,0.00051506,31]
[312642478,1706122373067,-820.02,0.00051506,31]
[312642479,1706122373077,-603.22,0.00051506,31]
[312642480,1706122373086,-4058.85,0.00051506,31]
[312642481,1706122373097,-870.48,0.00051506,31]
[312642482,1706122373107,-500.0,0.00051506,30]
[312642483,1706122373117,-1196.3,0.00051506,31]
[312642484,1706122373127,-691.03,0.00051506,31]
[312642485,1706122373137,-500.0,0.00051506,31]
[312642486,1706122373147,-506.34,0.00051506,31]
[312642487,1706122373157,-500.0,0.00051506,31]
[312642488,1706122373166,-500.0,0.00051506,31]
[312642489,1706122373176,-1595.23,0.00051506,31]
[312642490,1706122373185,-9475.21,0.00051506,31]
[312642491,1706122373195,-2256.81,0.00051506,31]
[312642492,1706122373205,-500.0,0.00051506,31]
[312642493,1706122373215,-500.0,0.00051506,31]
[312642494,1706122373226,-500.0,0.00051506,31]
[312642495,1706122373236,-504.15,0.00051506,31]
[312642496,1706122373246,-500.0,0.00051506,31]
[312642497,1706122373256,-949.97,0.00051506,31]
[312642498,1706122373266,-2007.79,0.00051506,31]
[312642499,1706122373275,-760.02,0.00051506,31]
[312642500,1706122373285,-1753.67,0.00051506,2]
[312642501,1706122373295,-960.34,0.00051506,31]
[312642502,1706122373309,-895.93,0.00051506,31]
[312642503,1706122373320,-500.0,0.00051506,31]
[312642504,1706122373330,-500.0,0.00051506,31]
[312642505,1706122373341,-500.0,0.00051506,31]
[312642506,1706122373351,-500.0,0.00051506,31]
[312642507,1706122373361,-9793.91,0.00051506,31]
[312642508,1706122373371,-630.07,0.00051506,31]
[312642509,1706122373382,-500.0,0.00051506,31]
[312642510,1706122373392,-1085.19,0.00051506,31]
[312642511,1706122373402,-500.0,0.00051506,31]
[312642512,1706122373411,-733.81,0.00051506,31]
[312642513,1706122373422,-822.62,0.00051506,31]
[312642514,1706122373432,-786.38,0.00051506,31]
[312642515,1706122373442,-583.81,0.00051506,31]
[312642516,1706122373451,-5724.55,0.00051506,31]
[312642517,1706122373461,-1209.52,0.00051506,31]
[312642518,1706122373471,-500.0,0.00051506,31]
[312642519,1706122373481,-921.04,0.00051506,31]
[312642520,1706122373491,-1294.87,0.00051506,31]
[312642521,1706122373501,-593.18,0.00051506,31]
[312642522,1706122373511,-2304.75,0.00051506,31]
[312642523,1706122373521,-500.0,0.00051506,31]